bitfinex-derivatives/quotes_SOLF0:USTF0_20251207
["timestamp","ask_amount","ask_price","bid_price","bid_amount"]
[1765139281288,62.72,136.25,136.15,3.17]
[1765139281289,3.16,136.24,136.17,3.17]
[1765139281506,3.16,136.24,136.2,3.17]
[1765139281696,3.16,136.24,136.19,68.08532735]
[1765139282003,3.16,136.23,136.19,5.36532735]
[1765139282398,3.16,136.21,136.2,0.05356199]
[1765139282700,3.16,136.2,136.16,3.17]
[1765139282899,2.19532735,136.23,136.18,3.17]
[1765139282900,3.16,136.21,136.18,3.17]
[1765139283593,0.05142051,136.21,136.18,3.2167606]
[1765139285906,3.21142051,136.21,136.18,0.0467606]
[1765139286298,3.21142051,136.21,136.18,3.2167606]
[1765139295215,3.16,136.2,136.18,0.0467606]
[1765139296515,9.7676,136.2,136.18,0.0467606]
[1765139296711,3.16,136.19,136.18,0.0467606]
[1765139306421,5.35532735,136.19,136.18,0.0467606]
[1765139308827,3.16,136.19,136.18,0.0467606]
[1765139315231,3.11,136.17,136.14,9.09826328]
[1765139315428,3.11,136.17,136.13,9.09826328]
[1765139315731,3.11,136.17,136.12,12.40826328]
[1765139316233,3.11,136.15,136.13,0.04786016]
[1765139316421,0.05166043,136.16,136.13,3.35786016]
[1765139316629,6.6099,136.15,136.13,3.35786016]
[1765139318330,0.05166043,136.16,136.13,3.35786016]
[1765139318538,0.05166043,136.16,136.13,12.45612344]
[1765139318738,0.05166043,136.16,136.14,12.40826328]
[1765139318939,0.05166043,136.16,136.15,3.31]
[1765139319137,3.16166043,136.16,136.14,9.09826328]
[1765139319348,3.11,136.15,136.13,12.45612344]
[1765139322444,3.11,136.15,136.13,9.14612344]
[1765139323434,3.11,136.15,136.13,12.45612344]
[1765139323638,6.66106043,136.16,136.15,3.31]
[1765139323936,9.77106043,136.16,136.14,3.31]
[1765139327653,3.1,136.15,136.13,12.34612344]
[1765139327945,9.7099,136.15,136.13,12.34612344]
[1765139328150,9.7099,136.15,136.13,3.24786016]
[1765139330152,9.7099,136.15,136.13,12.34612344]
[1765139336760,9.7099,136.15,136.13,3.24786016]
[1765139337058,9.7099,136.15,136.13,12.34612344]
[1765139338374,3.11,136.14,136.13,9.14612344]
[1765139338564,3.11,136.14,136.13,0.04786016]
[1765139341177,3.12,136.12,136.11,9.09826328]
[1765139341376,3.12,136.12,136.1,9.09826328]
[1765139341669,3.12,136.11,136.1,9.09826328]
[1765139341858,3.12,136.11,136.09,9.09826328]
[1765139342064,3.12,136.11,136.09,9.14764575]
[1765139342374,3.16897168,136.11,136.09,0.04938247]
[1765139342961,9.78097168,136.11,136.09,0.04938247]
[1765139343165,3.12,136.1,136.09,0.04938247]
[1765139348569,0.04897168,136.11,136.09,3.20938247]
[1765139348773,0.04897168,136.11,136.09,12.30764575]
[1765139348974,0.04897168,136.11,136.1,3.16]
[1765139355175,0.04897168,136.11,136.1,65.9]
[1765139359778,6.6101,136.15,136.11,3.19]
[1765139359973,6.6101,136.15,136.12,3.19]
[1765139360173,3.11,136.16,136.12,3.19]
[1765139360679,3.16,136.14,136.13,0.0545969]
[1765139360881,3.16,136.14,136.13,62.7945969]
[1765139362176,3.16,136.14,136.13,3.2445969]
[1765139362482,9.82610286,136.15,136.13,3.2445969]
[1765139366288,3.16,136.14,136.13,3.2445969]
[1765139366583,3.16,136.14,136.13,0.0545969]
[1765139391104,9.7192,136.17,136.14,3.34]
[1765139391405,9.7192,136.17,136.16,9.09692439]
[1765139391594,6.6092,136.17,136.16,12.43692439]
[1765139391796,9.7181,136.19,136.17,3.34]
[1765139392095,9.76615502,136.19,136.18,2.1964238]
[1765139393802,3.11,136.18,136.17,0.04928397]
[1765139398313,3.15805502,136.19,136.17,3.38928397]
[1765139400410,0.04805502,136.19,136.17,3.38928397]
[1765139401202,3.19805502,136.19,136.17,12.48620836]
[1765139401807,3.19805502,136.19,136.17,0.04928397]
[1765139402003,3.19805502,136.19,136.17,3.17928397]
[1765139402711,0.04805502,136.19,136.17,3.17928397]
[1765139403509,3.19805502,136.19,136.17,3.17928397]
[1765139409319,0.04805502,136.19,136.17,12.27620836]
[1765139409617,0.04805502,136.19,136.18,3.13]
[1765139411609,3.19805502,136.19,136.17,0.04928397]
[1765139411814,102.798,136.18,136.14,13.63287292]
[1765139412117,2.1964238,136.15,136.11,3.13]
[1765139412313,2.1964238,136.13,136.09,3.13]
[1765139412616,2.1964238,136.11,136.07,3.13]
[1765139412818,2.1964238,136.09,136.08,0.04645052]
[1765139413918,2.1964238,136.09,136.02,3.13]
[1765139413919,106.5215238,136.09,136.02,3.13]
[1765139414225,2.1964238,136.05,136.01,3.13]
[1765139414822,0.04831153,136.04,136.02,0.05572625]
[1765139415023,0.04831153,136.04,136.02,3.18572625]
[1765139415928,2.1964238,136.03,136.02,0.05572625]
[1765139416133,0.04831153,136.04,136.02,3.18572625]
[1765139420424,0.04831153,136.04,136.03,5.5064238]
[1765139423933,6.6132,136.09,136.06,3.31]
[1765139424239,6.6132,136.09,136.07,3.31]
[1765139424834,6.66855824,136.09,136.07,3.36292823]
[1765139425137,0.05535824,136.09,136.07,5.55935203]
[1765139425339,0.05535824,136.09,136.08,3.31]
[1765139436350,0.05535824,136.09,136.07,0.05292823]
[1765139437557,6.66835824,136.09,136.07,0.05292823]
[1765139440041,6.6142,136.06,136.03,3.31]
[1765139441052,6.66518396,136.06,136.03,3.35895781]
[1765139444858,6.6149,136.05,136.03,3.35895781]
[1765139457673,6.6149,136.05,136.03,0.04895781]
[1765139466266,6.6149,136.05,136.03,3.23895781]
[1765139471884,6.6149,136.05,136.03,0.04895781]
[1765139480190,102.9133,136.03,135.98,3.18]
[1765139481183,102.96767223,136.02,135.99,0.05485109]
[1765139481886,0.04697223,136.02,136.01,3.18]
[1765139483484,0.04697223,136.02,136.01,12.31245081]
[1765139484686,0.04697223,136.02,136.01,9.13245081]
[1765139484884,0.04697223,136.02,135.99,16.9335273]
[1765139484885,6.6166,136.01,136.0,9.13245081]
[1765139485089,6.6166,136.01,135.99,9.1873019]
[1765139486792,6.6166,136.01,135.99,12.3673019]
[1765139487490,6.6166,136.01,135.99,9.1873019]
[1765139488792,6.6166,136.01,135.99,12.3673019]
[1765139490194,6.6166,136.01,135.99,9.1873019]
[1765139490395,6.6166,136.01,135.99,0.05485109]
[1765139490697,6.6166,136.01,135.99,3.23485109]
[1765139491200,0.04697223,136.02,135.99,3.23485109]
[1765139494499,6.66327223,136.02,135.99,3.23485109]
[1765139497596,8.81772606,136.01,135.99,0.05485109]
[1765139504003,8.81772606,136.01,136.0,3.18]
[1765139504004,6.6169,136.01,136.0,3.18]
[1765139507104,8.81772606,136.01,135.99,9.03571099]
[1765139507302,6.618,135.98,135.96,2.11627621]
[1765139507502,2.20082606,135.96,135.92,3.18]
[1765139507705,2.20082606,135.94,135.89,3.35]
[1765139508093,0.04763016,135.93,135.91,3.35]
[1765139509004,0.04763016,135.93,135.9,3.39786879]
[1765139509609,6.66833016,135.93,135.9,3.39786879]
[1765139511017,6.66833016,135.93,135.9,0.04786879]
[1765139511510,6.66833016,135.93,135.9,3.39786879]
[1765139513013,0.04763016,135.93,135.9,3.39786879]
[1765139516621,2.20082606,135.92,135.9,3.39786879]
[1765139517511,8.82192606,135.92,135.9,3.39786879]
[1765139520023,8.82192606,135.92,135.9,0.04786879]
[1765139521220,6.6235,135.87,135.85,3.11]
[1765139521919,8.82352606,135.89,135.85,3.11]
[1765139522308,0.0468464,135.88,135.86,3.1596251]
[1765139529630,6.6218,135.91,135.87,3.11]
[1765139530226,6.6208,135.93,135.89,3.11]
[1765139530427,0.04887099,135.92,135.91,3.11]
[1765139538238,6.67007099,135.92,135.9,3.27659907]
[1765139539036,8.87089705,135.92,135.9,3.27659907]
[1765139539929,6.67007099,135.92,135.9,3.27659907]
[1765139548641,0.04887099,135.92,135.9,3.27659907]
[1765139553958,6.66997099,135.92,135.9,3.27659907]
[1765139558952,0.04887099,135.92,135.9,3.27659907]
[1765139563960,0.04887099,135.92,135.9,0.05659907]
[1765139564159,10.11379685,135.92,135.9,0.05659907]
[1765139571170,6.67027099,135.92,135.9,0.05659907]
[1765139572470,10.11379685,135.92,135.9,0.05659907]
[1765139582177,5.34782531,135.91,135.9,0.05659907]
[1765139582675,103.0113,135.9,135.85,3.23]
[1765139582870,3.44352586,135.89,135.85,3.23]
[1765139583273,106.46372586,135.89,135.85,3.23]
[1765139583467,103.0239,135.88,135.83,3.23]
[1765139583777,0.04690476,135.87,135.84,0.05018079]
[1765139583976,0.04690476,135.87,135.84,3.28018079]
[1765139584471,6.67070476,135.87,135.84,3.28018079]
[1765139588281,6.6243,135.86,135.84,3.28018079]
[1765139588484,6.6243,135.86,135.84,0.05018079]
[1765139589288,6.6243,135.86,135.84,3.28018079]
[1765139591986,6.6243,135.86,135.84,0.05018079]
[1765139592283,6.6243,135.86,135.84,3.28018079]
[1765139593288,6.6243,135.86,135.84,0.05018079]
[1765139593487,10.06782586,135.86,135.84,0.05018079]
[1765139608093,72.92782586,135.86,135.84,0.05018079]
[1765139608295,6.6268,135.81,135.79,3.34]
[1765139608491,103.0618,135.83,135.77,3.34]
[1765139608694,103.0711,135.82,135.77,3.34]
[1765139608898,6.6274,135.79,135.77,3.34]
[1765139609406,6.67501092,135.79,135.77,3.3964601]
[1765139610801,6.67501092,135.79,135.77,0.0564601]
[1765139611004,6.67501092,135.79,135.77,3.3964601]
[1765139613414,0.04761092,135.79,135.77,3.3964601]
[1765139613703,103.0515,135.85,135.78,3.34]
[1765139614596,6.67313272,135.83,135.8,3.39277195]
[1765139621320,0.04743272,135.83,135.82,3.34]
[1765139621504,6.6246,135.85,135.82,3.34]
[1765139622400,6.67201672,135.85,135.82,3.34]
[1765139626418,0.04741672,135.85,135.8,3.39277195]
[1765139626618,2.20688491,135.84,135.8,3.39277195]
[1765139627508,6.6255,135.83,135.8,3.39277195]
[1765139629616,6.626,135.82,135.8,3.39277195]
[1765139630120,8.83288491,135.82,135.8,0.05277195]
[1765139640425,8.83288491,135.82,135.8,0.012182]
[1765139640626,103.0935,135.79,135.73,3.35]
[1765139640930,2.20688491,135.77,135.73,3.35]
[1765139641424,6.6289,135.76,135.73,3.35]
[1765139641626,6.68290298,135.76,135.74,3.40151572]
[1765139643931,0.05400298,135.76,135.74,3.40151572]
[1765139661543,6.6272,135.8,135.76,3.14]
[1765139661844,2.20688491,135.83,135.76,3.14]
[1765139662435,0.0500066,135.8,135.78,3.19589767]
[1765139663446,6.6772066,135.8,135.78,3.19589767]
[1765139666253,0.0500066,135.8,135.78,3.19589767]
[1765139677565,6.6769066,135.8,135.78,3.19589767]
[1765139680168,0.0500066,135.8,135.78,3.19589767]
[1765139680479,103.0508,135.85,135.78,3.19589767]
[1765139680857,6.6251,135.84,135.79,3.14]
[1765139681267,6.6242,135.86,135.79,9.767]
[1765139681455,0.05592712,135.84,135.82,3.14]
[1765139685273,0.05592712,135.84,135.81,3.18848434]
[1765139705384,6.6237,135.87,135.81,3.18848434]
[1765139706386,0.05240748,135.85,135.81,3.18848434]
[1765139707991,0.05240748,135.85,135.81,9.81468434]
[1765139708885,0.05240748,135.85,135.82,3.27]
[1765139709382,6.6228,135.89,135.83,3.27]
[1765139709577,6.6228,135.89,135.85,3.27]
[1765139709778,106.43933019,135.93,135.85,3.27]
[1765139710375,102.998,135.92,135.86,0.05203829]
[1765139710683,0.05040607,135.89,135.86,3.32203829]
[1765139711291,6.67300607,135.89,135.86,3.32203829]
[1765139711490,0.05040607,135.89,135.86,3.32203829]
[1765139714586,6.67300607,135.89,135.86,3.32203829]
[1765139715687,0.05040607,135.89,135.86,3.32203829]
[1765139726197,6.6231,135.88,135.86,0.05203829]
[1765139735306,3.44933019,135.87,135.86,0.05203829]
[1765139735716,103.0469,135.85,135.8,3.11]
[1765139736206,6.626,135.82,135.78,16.7287006]
[1765139736408,6.626,135.82,135.79,3.11]
[1765139736602,6.68003175,135.82,135.79,3.15847457]
[1765139738510,6.68003175,135.82,135.79,0.04847457]
[1765139740810,8.88754416,135.82,135.79,0.04847457]
[1765139741508,6.68003175,135.82,135.79,3.15847457]
[1765139743911,0.05403175,135.82,135.79,3.15847457]
[1765139747315,2.26154416,135.82,135.79,0.04847457]
[1765139747718,2.26154416,135.82,135.79,3.28847457]
[1765139748614,8.88754416,135.82,135.79,3.28847457]
[1765139750118,0.05403175,135.82,135.79,3.28847457]
[1765139760725,0.05403175,135.82,135.8,2.20751241]
[1765139760933,6.6247,135.85,135.81,3.2]
[1765139761123,2.20751241,135.88,135.81,3.2]
[1765139761430,6.624,135.86,135.81,3.2]
[1765139761933,0.05315941,135.85,135.83,3.2]
[1765139769245,6.67765941,135.85,135.83,3.2]
[1765139771546,6.67765941,135.85,135.82,0.05516343]
[1765139771547,6.6251,135.84,135.82,0.05516343]
[1765139772939,6.6251,135.84,135.82,3.25516343]
[1765139774444,0.05315941,135.85,135.83,3.2]
[1765139774948,6.6233,135.88,135.85,3.2]
[1765139775134,105.20291241,135.92,135.87,3.2]
[1765139775334,102.9954,135.92,135.87,3.2]
[1765139775943,0.05024862,135.91,135.88,3.24982701]
[1765139776448,6.6221,135.9,135.88,3.24982701]
[1765139778444,6.6221,135.9,135.88,0.04982701]
[1765139778646,8.82961241,135.9,135.88,0.04982701]
[1765139785651,6.6221,135.9,135.88,3.18982701]
[1765139789556,6.6221,135.9,135.88,0.04982701]
[1765139790257,8.82961241,135.9,135.88,0.04982701]
[1765139790650,2.20751241,135.89,135.88,0.04982701]
[1765139794961,6.6221,135.9,135.88,0.04982701]
[1765139797363,2.20751241,135.89,135.88,0.04982701]
[1765139800765,6.6221,135.9,135.88,0.04982701]
[1765139810463,10.06760436,135.9,135.88,0.04982701]
[1765139815682,72.88760436,135.9,135.88,0.04982701]
[1765139818276,5.33632143,135.89,135.88,0.04982701]
[1765139826396,72.88760436,135.9,135.88,0.04982701]
[1765139826597,5.335791,135.89,135.88,0.04982701]
[1765139832210,5.335791,135.89,135.88,3.29982701]
[1765139832402,6.6221,135.9,135.88,3.29982701]
[1765139836304,6.6221,135.9,135.88,0.04982701]
[1765139836508,10.06760436,135.9,135.88,0.04982701]
[1765139836710,72.88760436,135.9,135.88,0.04982701]
[1765139836910,5.33785633,135.89,135.88,0.04982701]
[1765139839813,103.0276,135.88,135.84,3.25]
[1765139840815,103.0276,135.88,135.85,3.2477303]
[1765139840816,6.67458711,135.87,135.85,3.2477303]
[1765139847520,6.67458711,135.87,135.85,0.0477303]
[1765139847719,6.67458711,135.87,135.85,3.2477303]
[1765139849025,0.05118711,135.87,135.85,3.2477303]
[1765139856829,6.6228,135.89,135.85,3.2477303]
[1765139857829,0.04888852,135.88,135.85,3.2477303]
[1765139860033,6.67188852,135.88,135.85,3.2477303]
[1765139866936,6.6236,135.87,135.85,0.0477303]
[1765139867439,2.20498182,135.86,135.85,0.0477303]
[1765139873937,2.20498182,135.86,135.85,3.2177303]
[1765139874643,2.20498182,135.86,135.85,0.0477303]
[1765139880646,2.20498182,135.86,135.85,3.0977303]
[1765139886152,2.20498182,135.86,135.8,20.2453006]
[1765139886153,103.052,135.85,135.79,13.6187006]
[1765139886345,2.20498182,135.81,135.79,3.05]
[1765139886552,2.20498182,135.81,135.77,3.05]
[1765139887155,0.05121527,135.8,135.78,3.09641362]
[1765139902468,0.05121527,135.8,135.78,65.93641362]
[1765139902669,0.05121527,135.8,135.79,3.31]
[1765139905078,6.6252,135.84,135.79,3.31]
[1765139905764,6.6257,135.83,135.79,3.31]
[1765139905960,8.83068182,135.83,135.79,3.31]
[1765139906165,0.04540355,135.82,135.79,3.31]
[1765139912176,6.67130355,135.82,135.79,3.31]
[1765139912376,0.04540355,135.82,135.78,62.88641362]
[1765139912573,0.04540355,135.82,135.78,66.19641362]
[1765139912983,6.6271,135.8,135.78,66.19641362]
[1765139915984,6.6271,135.8,135.79,3.31]
[1765139927790,6.6271,135.8,135.78,3.38641362]
[1765139933492,6.6271,135.8,135.78,0.04641362]
[1765139944300,6.6271,135.8,135.78,3.09641362]
[1765139973827,6.67160355,135.82,135.78,3.09641362]
[1765139976025,0.04540355,135.82,135.78,3.09641362]
[1765139977421,0.04540355,135.82,135.78,16.71511422]
[1765139977725,0.04540355,135.82,135.79,3.34]
[1765139980719,0.04540355,135.82,135.79,13.4169356]
[1765139980921,0.04540355,135.82,135.8,3.34]
[1765139982928,9.16310874,135.99,135.91,106.3383]
[1765139983132,0.17,136.0,135.95,3.34]
[1765139983829,0.17,136.0,135.96,0.0545361]
[1765139984033,0.17,136.0,135.97,3.34]
[1765139984328,0.17,136.0,135.96,3.3945361]
[1765139984832,0.17,135.99,135.96,3.3945361]
[1765139988725,0.17,135.99,135.96,0.0545361]
[1765139989036,2.20173008,136.0,135.96,0.0545361]
[1765139989037,0.16,135.97,135.96,0.0545361]
[1765140004444,0.16,135.95,135.9,3.06]
[1765140004640,0.16,135.94,135.9,3.06]
[1765140005348,0.0491941,135.93,135.92,3.06]
[1765140007739,0.16,135.92,135.91,0.04781308]
[1765140009550,6.781,135.92,135.91,0.04781308]
[1765140010749,2.25092418,135.93,135.91,0.04781308]
[1765140011050,2.41092418,135.93,135.91,3.10781308]
[1765140011841,0.0491941,135.93,135.91,3.10781308]
[1765140014651,0.0491941,135.93,135.91,0.04781308]
[1765140014652,0.16,135.92,135.91,0.04781308]
[1765140025259,63.04,135.92,135.91,0.04781308]
[1765140036473,0.17,135.9,135.85,9.94161024]
[1765140036673,2.37173008,135.88,135.85,9.94161024]
[1765140037572,9.05038501,135.88,135.86,3.13]
[1765140040673,0.17,135.86,135.85,6.85994807]
[1765140040972,2.37173008,135.86,135.85,6.85994807]
[1765140041278,2.20173008,135.86,135.85,9.98994807]
[1765140044477,6.7935,135.87,135.85,9.98994807]
[1765140044684,6.7935,135.87,135.85,10.02398807]
[1765140045173,63.03,135.86,135.85,0.04833783]
[1765140049590,0.17,135.86,135.85,0.04833783]
[1765140049788,62.86,135.86,135.85,3.24833783]
[1765140050490,62.86,135.86,135.85,0.04833783]
[1765140050692,63.03,135.86,135.85,0.04833783]
[1765140050887,6.7935,135.87,135.85,3.24833783]
[1765140052288,6.6235,135.87,135.85,3.24833783]
[1765140052592,6.6235,135.87,135.86,3.2]
[1765140060495,6.7935,135.87,135.85,6.89398807]
[1765140060700,6.7935,135.87,135.85,10.11398807]
[1765140060897,0.17,135.86,135.85,6.89398807]
[1765140062297,0.17,135.86,135.85,10.11398807]
[1765140062502,6.7935,135.87,135.85,10.11398807]
[1765140071204,6.7935,135.87,135.86,6.84565024]
[1765140080113,6.7935,135.87,135.85,12.35765202]
[1765140084118,6.7935,135.87,135.86,3.25]
[1765140086905,6.6235,135.87,135.86,3.25]
[1765140087313,6.7935,135.87,135.86,3.25]
[1765140088723,6.7935,135.87,135.86,12.33931419]
[1765140096127,6.6235,135.87,135.86,12.33931419]
[1765140096929,0.05565493,135.88,135.87,3.25]
[1765140108537,0.22565493,135.88,135.87,12.33931419]
[1765140108834,6.6234,135.87,135.86,12.22931419]
[1765140109426,8.82900851,135.87,135.86,12.22931419]
[1765140110840,6.6234,135.87,135.86,12.22931419]
[1765140112945,8.99900851,135.87,135.86,1.419e-05]
[1765140113246,0.17,135.86,135.85,0.04833783]
[1765140113448,0.17,135.86,135.85,6.92200461]
[1765140115549,0.17,135.86,135.85,10.06200461]
[1765140117349,0.17,135.86,135.85,3.18833783]
[1765140117539,0.17,135.86,135.85,0.04833783]
[1765140118155,0.17,135.86,135.85,3.31833783]
[1765140119149,0.17,135.86,135.85,0.04833783]
[1765140120257,0.17,135.86,135.85,3.31833783]
[1765140120449,0.17,135.86,135.85,0.04833783]
[1765140121656,0.17,135.86,135.85,3.31833783]
[1765140122147,6.6234,135.87,135.85,3.31833783]
[1765140122347,0.17,135.87,135.86,6.87366678]
[1765140122547,2.37560851,135.87,135.86,6.87366678]
[1765140122949,8.99940851,135.87,135.85,6.92200461]
[1765140123155,8.99940851,135.87,135.85,10.19200461]
[1765140123653,8.82940851,135.87,135.86,3.27]
[1765140123957,8.99940851,135.87,135.86,3.27]
[1765140134470,6.7938,135.87,135.86,3.27]
[1765140135366,6.6238,135.87,135.86,3.27]
[1765140135573,0.05565493,135.88,135.86,3.27]
[1765140136167,0.05565493,135.88,135.87,3.27]
[1765140141672,6.6217,135.91,135.87,3.27]
[1765140141878,6.6217,135.91,135.9,3.33]
[1765140142563,8.99640851,135.93,135.9,3.33]
[1765140142759,9.04310276,135.93,135.9,3.38122941]
[1765140143174,6.83749425,135.93,135.9,3.38122941]
[1765140143371,6.66749425,135.93,135.9,3.38122941]
[1765140144777,0.04669425,135.93,135.91,3.33]
[1765140151878,9.09310276,135.93,135.91,3.33]
[1765140153177,6.8414,135.92,135.9,3.38122941]
[1765140153383,2.20560851,135.91,135.9,3.38122941]
[1765140154385,2.42560851,135.91,135.9,3.38122941]
[1765140154585,2.42560851,135.91,135.9,0.05122941]
[1765140154786,2.20560851,135.91,135.9,3.38122941]
[1765140156492,2.42560851,135.91,135.9,3.38122941]
[1765140156790,2.20560851,135.91,135.9,3.38122941]
[1765140160299,6.6214,135.92,135.9,3.38122941]
[1765140160898,2.25230276,135.93,135.9,3.38122941]
[1765140161393,2.47230276,135.93,135.9,3.38122941]
[1765140161595,0.04669425,135.93,135.9,3.38122941]
[1765140162496,6.66729425,135.93,135.9,3.38122941]
[1765140162997,6.66729425,135.93,135.91,3.33]
[1765140165095,0.04669425,135.93,135.91,3.33]
[1765140171201,0.27669425,135.93,135.91,10.16336795]
[1765140171393,0.27669425,135.93,135.92,3.13]
[1765140171589,0.04669425,135.93,135.92,3.13]
[1765140176407,0.04669425,135.93,135.92,9.96336795]
[1765140181209,0.04669425,135.93,135.92,3.13]
[1765140186709,6.6193,135.96,135.92,3.13]
[1765140186909,6.6193,135.96,135.95,3.33]
[1765140191918,6.6193,135.96,135.95,10.17959911]
[1765140192808,6.6183,135.98,135.96,3.33]
[1765140193915,6.8483,135.98,135.96,3.33]
[1765140194414,6.6183,135.98,135.96,3.33]
[1765140196815,6.8483,135.98,135.96,3.33]
[1765140197014,0.23,135.96,135.95,6.84959911]
[1765140197315,0.23,135.96,135.94,10.22761852]
[1765140198106,0.23,135.96,135.95,3.18]
[1765140198516,6.849,135.96,135.95,3.18]
[1765140206729,6.619,135.96,135.95,3.18]
[1765140207219,6.619,135.96,135.95,10.02959911]
[1765140211228,6.6183,135.98,135.96,3.18]
[1765140212432,6.8383,135.98,135.96,3.18]
[1765140212933,6.6183,135.98,135.96,3.18]
[1765140214230,6.8383,135.98,135.96,3.18]
[1765140214532,6.6183,135.98,135.96,3.18]
[1765140214723,6.8383,135.98,135.96,3.18]
[1765140214925,6.8383,135.98,135.96,10.02467763]
[1765140217439,6.8383,135.98,135.97,3.18]
[1765140218127,6.8383,135.98,135.96,10.02467763]
[1765140222043,6.6183,135.98,135.97,3.18]
[1765140223051,6.8383,135.98,135.97,3.18]
[1765140227443,6.8383,135.98,135.96,6.84467763]
[1765140227444,0.22,135.97,135.96,4.39053969]
[1765140227645,0.22,135.99,135.97,3.3]
[1765140227843,0.22,135.99,135.97,3.35412294]
[1765140228239,0.22,135.99,135.97,0.05412294]
[1765140229046,0.22,135.99,135.97,3.35412294]
[1765140229653,0.22,135.99,135.97,0.05412294]
[1765140229952,2.42213845,135.98,135.97,0.05412294]
[1765140240769,2.42213845,135.98,135.97,0.00412294]
[1765140241361,103.1367,135.96,135.91,9.12992913]
[1765140241561,103.1367,135.96,135.91,3.15]
[1765140241562,0.17,135.93,135.91,3.15]
[1765140242462,0.22315178,135.93,135.91,3.20518707]
[1765140246360,6.67375178,135.93,135.91,3.20518707]
[1765140246567,0.05315178,135.93,135.91,3.20518707]
[1765140247760,0.05315178,135.93,135.91,12.3351162]
[1765140248064,0.05315178,135.93,135.92,3.15]
[1765140256269,6.6193,135.96,135.92,3.15]
[1765140256472,6.6193,135.96,135.93,3.15]
[1765140258268,6.6196,135.95,135.93,3.15]
[1765140271176,6.6196,135.95,135.93,12.27992913]
[1765140271376,6.6196,135.95,135.94,3.22]
[1765140275683,6.6189,135.97,135.94,3.22]
[1765140275891,6.6189,135.97,135.94,3.27472106]
[1765140277676,6.6189,135.97,135.95,3.22]
[1765140278687,3.21,136.02,135.97,3.22]
[1765140278982,3.21,136.02,135.99,3.22]
[1765140279179,6.6169,136.01,135.99,3.22]
[1765140280075,9.8269,136.01,135.99,3.22]
[1765140280280,6.6176,135.99,135.98,12.38128418]
[1765140280481,6.6176,135.99,135.98,3.26730612]
[1765140287398,6.6176,135.99,135.98,10.08186775]
[1765140299303,6.6176,135.99,135.98,3.26730612]
[1765140299709,9.8176,135.99,135.98,6.86150197]
[1765140300302,6.6185,135.97,135.96,1.97e-06]
[1765140300500,6.6185,135.97,135.94,3.24]
[1765140301006,3.2,135.96,135.94,3.24]
[1765140301406,3.24827728,135.96,135.94,3.29592989]
[1765140303210,9.86737728,135.96,135.94,3.29592989]
[1765140303411,3.2,135.95,135.94,3.29592989]
[1765140304909,6.66737728,135.96,135.94,3.29592989]
[1765140305210,9.86737728,135.96,135.94,3.29592989]
[1765140306117,9.86737728,135.96,135.95,3.24]
[1765140306510,9.86737728,135.96,135.94,9.16990795]
[1765140306715,9.86737728,135.96,135.94,12.40990795]
[1765140309215,9.86737728,135.96,135.94,9.16990795]
[1765140309216,3.2,135.95,135.94,9.16990795]
[1765140309516,3.2,135.95,135.94,0.05592989]
[1765140323626,3.28,135.9,135.88,3.1]
[1765140324526,3.28,135.89,135.88,0.05100576]
[1765140330034,3.28,135.89,135.88,0.00100576]
[1765140335136,9.95648045,135.9,135.88,3.10100576]
[1765140338041,6.67648045,135.9,135.88,3.10100576]
[1765140342940,9.95648045,135.9,135.88,3.10100576]
[1765140345131,0.05438045,135.9,135.88,3.10100576]
[1765140345631,0.05438045,135.9,135.89,3.1]
[1765140347239,0.05438045,135.9,135.89,12.21397806]
[1765140354156,0.05438045,135.9,135.89,3.1]
[1765140356558,0.05438045,135.9,135.89,12.24230717]
[1765140356857,0.05438045,135.9,135.89,3.1]
[1765140378186,0.05438045,135.9,135.89,16.79089234]
[1765140380287,9.7106,135.93,135.89,16.79089234]
[1765140380586,9.7106,135.93,135.92,6.86377044]
[1765140381183,3.34,135.99,135.93,3.11]
[1765140381384,0.05047281,135.97,135.96,9.06355753]
[1765140381587,0.05216481,135.98,135.96,64.94362504]
[1765140381783,0.04727242,135.98,135.97,12.24895032]
[1765140382288,0.04727242,135.98,135.97,12.24044778]
[1765140384391,0.04727242,135.98,135.97,3.11]